[Event "Titled Tuesday Blitz February 14 Late 2023"]
[White "Papasimakopoulos, Alexandros"]
[Black "Lopez Idarraga, Daniel Eduardo"]
[WhiteFideId "4244125"]
[BlackFideId "4405501"]
[WhiteElo "2401"]
[BlackElo "2009"]
[Result "0-1"]
[Round "10"]
[TimeControl "180+2"]
[Date "2023.02.14"]
[WhiteClock "0:01:12"]
[BlackClock "0:01:09"]

1. d4 {[%clk 0:03:00]}  Nf6 {[%clk 0:03:00]} 2. c4 {[%clk 0:02:59]}  e6 {[%clk 0:03:01]} 3. Nc3 {[%clk 0:03:00]}  d5 {[%clk 0:03:01]} 4. cxd5 {[%clk 0:03:00]}  exd5 {[%clk 0:03:01]} 5. Bg5 {[%clk 0:03:00]}  c6 {[%clk 0:03:01]} 6. e3 {[%clk 0:03:01]}  Bf5 {[%clk 0:02:54]} 7. Qf3 {[%clk 0:03:01]}  Bg6 {[%clk 0:02:51]} 8. Bxf6 {[%clk 0:03:01]}  Qxf6 {[%clk 0:02:51]} 9. Qxf6 {[%clk 0:03:01]}  gxf6 {[%clk 0:02:52]} 10. Kd2 {[%clk 0:03:02]}  f5 {[%clk 0:02:52]} 11. Bd3 {[%clk 0:02:57]}  Bd6 {[%clk 0:02:50]} 12. Nge2 {[%clk 0:02:57]}  Nd7 {[%clk 0:02:50]} 13. Ng3 {[%clk 0:02:58]}  f4 {[%clk 0:02:48]} 14. Nf5 {[%clk 0:02:56]}  Bxf5 {[%clk 0:02:46]} 15. Bxf5 {[%clk 0:02:56]}  fxe3+ {[%clk 0:02:47]} 16. fxe3 {[%clk 0:02:56]}  O-O-O {[%clk 0:02:47]} 17. Raf1 {[%clk 0:02:53]}  Kc7 {[%clk 0:02:46]} 18. Bh3 {[%clk 0:02:47]}  f6 {[%clk 0:02:39]} 19. Bxd7 {[%clk 0:02:47]}  Rxd7 {[%clk 0:02:35]} 20. Rxf6 {[%clk 0:02:47]}  h5 {[%clk 0:02:36]} 21. Ne2 {[%clk 0:02:39]}  h4 {[%clk 0:02:35]} 22. Nf4 {[%clk 0:02:39]}  Rg8 {[%clk 0:02:10]} 23. Rg6 {[%clk 0:02:40]}  Re8 {[%clk 0:02:07]} 24. Rf1 {[%clk 0:02:35]}  Rde7 {[%clk 0:02:04]} 25. Rf3 {[%clk 0:02:21]}  Rxe3 {[%clk 0:02:03]} 26. Rg7+ {[%clk 0:01:53]}  Kb6 {[%clk 0:01:52]} 27. Nd3 {[%clk 0:01:51]}  Rxf3 {[%clk 0:01:45]} 28. gxf3 {[%clk 0:01:50]}  Bxh2 {[%clk 0:01:43]} 29. Nc5 {[%clk 0:01:49]}  Bc7 {[%clk 0:01:40]} 30. Rh7 {[%clk 0:01:46]}  h3 {[%clk 0:01:36]} 31. Rxh3 {[%clk 0:01:43]}  Bf4+ {[%clk 0:01:36]} 32. Kc2 {[%clk 0:01:42]}  Re7 {[%clk 0:01:34]} 33. Rh4 {[%clk 0:01:41]}  Bd6 {[%clk 0:01:32]} 34. b4 {[%clk 0:01:38]}  Kb5 {[%clk 0:01:28]} 35. Rh6 {[%clk 0:01:31]}  Bxc5 {[%clk 0:01:25]} 36. bxc5 {[%clk 0:01:28]}  Kc4 {[%clk 0:01:26]} 37. Rh4 {[%clk 0:01:28]}  Re2+ {[%clk 0:01:22]} 38. Kd1 {[%clk 0:01:29]}  Rxa2 {[%clk 0:01:21]} 39. Rh7 {[%clk 0:01:29]}  Kxd4 {[%clk 0:01:16]} 40. Rxb7 {[%clk 0:01:28]}  Kxc5 {[%clk 0:01:17]} 41. Ke1 {[%clk 0:01:27]}  Kd4 {[%clk 0:01:16]} 42. Re7 {[%clk 0:01:25]}  c5 {[%clk 0:01:15]} 43. f4 {[%clk 0:01:26]}  Rh2 {[%clk 0:01:12]} 44. f5 {[%clk 0:01:22]}  Rh4 {[%clk 0:01:10]} 45. Rxa7 {[%clk 0:01:20]}  Rf4 {[%clk 0:01:10]} 46. Rf7 {[%clk 0:01:18]}  Ke5 {[%clk 0:01:10]} 47. Rc7 {[%clk 0:01:15]}  c4 {[%clk 0:01:09]} 48. Kd2 {[%clk 0:01:15]}  Rxf5 {[%clk 0:01:09]} 49. Kc3 {[%clk 0:01:15]}  Rf3+ {[%clk 0:01:08]} 50. Kb4 {[%clk 0:01:16]}  Kd4 {[%clk 0:01:09]} 51. Rh7 {[%clk 0:01:14]}  Rb3+ {[%clk 0:01:09]} 52. Ka4 {[%clk 0:01:14]}  Rb8 {[%clk 0:01:10]} 53. Rh4+ {[%clk 0:01:13]}  Kc5 {[%clk 0:01:10]} 54. Ka3 {[%clk 0:01:13]}  c3 {[%clk 0:01:10]} 55. Rh3 {[%clk 0:01:13]}  d4 {[%clk 0:01:10]} 56. Rh7 {[%clk 0:01:13]}  Kc4 {[%clk 0:01:10]} 57. Rb7 {[%clk 0:01:12]}  Rxb7 {[%clk 0:01:09]} 0-1


[Site "https://www.chess.com"]

[Event "Titled Tuesday Blitz February 14 Late 2023"]
[White "Alex_Sahakyan2006"]
[Black "Kaplan, Avi Harrison"]
[BlackFideId "30934559"]
[WhiteElo "2696"]
[BlackElo "2146"]
[Result "0-1"]
[Round "10"]
[TimeControl "180+2"]
[Date "2023.02.14"]
[WhiteClock "0:01:34"]
[BlackClock "0:00:14"]

1. e4 {[%clk 0:03:00]}  d6 {[%clk 0:02:57]} 2. d4 {[%clk 0:03:00]}  Nf6 {[%clk 0:02:57]} 3. Nc3 {[%clk 0:03:01]}  Nbd7 {[%clk 0:02:58]} 4. f4 {[%clk 0:03:01]}  e5 {[%clk 0:02:57]} 5. Nf3 {[%clk 0:03:01]}  exd4 {[%clk 0:02:54]} 6. Qxd4 {[%clk 0:02:58]}  Be7 {[%clk 0:02:44]} 7. e5 {[%clk 0:02:58]}  dxe5 {[%clk 0:02:42]} 8. fxe5 {[%clk 0:02:59]}  Nh5 {[%clk 0:02:30]} 9. g4 {[%clk 0:02:55]}  Bh4+ {[%clk 0:02:27]} 10. Kd1 {[%clk 0:02:51]}  O-O {[%clk 0:02:14]} 11. gxh5 {[%clk 0:02:43]}  Nxe5 {[%clk 0:01:49]} 12. Qxd8 {[%clk 0:02:33]}  Rxd8+ {[%clk 0:01:50]} 13. Ke2 {[%clk 0:02:32]}  Bg4 {[%clk 0:01:35]} 14. Bg2 {[%clk 0:02:32]}  Re8 {[%clk 0:01:36]} 15. Be3 {[%clk 0:02:23]}  Nc4 {[%clk 0:01:36]} 16. Kd3 {[%clk 0:01:58]}  Nxb2+ {[%clk 0:01:09]} 17. Kd2 {[%clk 0:01:57]}  Nc4+ {[%clk 0:01:02]} 18. Kc1 {[%clk 0:01:57]}  Bxf3 {[%clk 0:01:01]} 19. Bxf3 {[%clk 0:01:51]}  Rxe3 {[%clk 0:01:02]} 20. Bxb7 {[%clk 0:01:51]}  Bg5 {[%clk 0:00:47]} 21. Kd1 {[%clk 0:01:40]}  Rd8+ {[%clk 0:00:19]} 22. Nd5 {[%clk 0:01:40]}  c6 {[%clk 0:00:14]} 23. Bxc6 {[%clk 0:01:39]}  Re6 {[%clk 0:00:15]} 24. Bb7 {[%clk 0:01:34]}  Nb2# {[%clk 0:00:14]} 0-1


[Site "https://www.chess.com"]

[Event "Titled Tuesday Blitz February 14 Late 2023"]
[White "Petrovic, Aleksa"]
[Black "Sokolovsky, Yahli"]
[WhiteFideId "967629"]
[BlackFideId "2820242"]
[WhiteElo "2332"]
[BlackElo "2461"]
[Result "1-0"]
[Round "10"]
[TimeControl "180+2"]
[Date "2023.02.14"]
[WhiteClock "0:00:12"]
[BlackClock "0:00:02"]

1. d4 {[%clk 0:02:59]}  c5 {[%clk 0:02:39]} 2. d5 {[%clk 0:02:58]}  d6 {[%clk 0:02:37]} 3. c4 {[%clk 0:02:54]}  g6 {[%clk 0:02:35]} 4. e4 {[%clk 0:02:54]}  Bg7 {[%clk 0:02:35]} 5. Ne2 {[%clk 0:02:53]}  Nf6 {[%clk 0:02:35]} 6. Nbc3 {[%clk 0:02:54]}  Nbd7 {[%clk 0:02:33]} 7. Ng3 {[%clk 0:02:50]}  h5 {[%clk 0:02:34]} 8. Be2 {[%clk 0:02:48]}  h4 {[%clk 0:02:34]} 9. Nf1 {[%clk 0:02:48]}  h3 {[%clk 0:02:34]} 10. g3 {[%clk 0:02:45]}  a6 {[%clk 0:02:07]} 11. a4 {[%clk 0:02:44]}  Qc7 {[%clk 0:01:44]} 12. Ne3 {[%clk 0:02:43]}  e5 {[%clk 0:01:41]} 13. O-O {[%clk 0:02:32]}  Nf8 {[%clk 0:01:25]} 14. f4 {[%clk 0:02:30]}  exf4 {[%clk 0:01:18]} 15. gxf4 {[%clk 0:02:31]}  Nh5 {[%clk 0:01:18]} 16. e5 {[%clk 0:02:29]}  dxe5 {[%clk 0:00:57]} 17. d6 {[%clk 0:02:28]}  Qd8 {[%clk 0:00:56]} 18. Ne4 {[%clk 0:02:17]}  Nxf4 {[%clk 0:00:49]} 19. Nd5 {[%clk 0:02:00]}  Nxd5 {[%clk 0:00:37]} 20. cxd5 {[%clk 0:02:01]}  Bf5 {[%clk 0:00:31]} 21. Bg5 {[%clk 0:01:36]}  Qb6 {[%clk 0:00:27]} 22. a5 {[%clk 0:01:26]}  Qa7 {[%clk 0:00:22]} 23. Bg4 {[%clk 0:00:39]}  Bxe4 {[%clk 0:00:04]} 24. Qa4+ {[%clk 0:00:37]}  b5 {[%clk 0:00:03]} 25. axb6+ {[%clk 0:00:37]}  Qd7 {[%clk 0:00:03]} 26. Bxd7+ {[%clk 0:00:36]}  Nxd7 {[%clk 0:00:03]} 27. Rxf7 {[%clk 0:00:35]}  Kxf7 {[%clk 0:00:01]} 28. Qxd7+ {[%clk 0:00:36]}  Kg8 {[%clk 0:00:02]} 29. b7 {[%clk 0:00:35]}  Rf8 {[%clk 0:00:02]} 30. Qe6+ {[%clk 0:00:25]}  Kh7 {[%clk 0:00:02]} 31. Qxh3+ {[%clk 0:00:25]}  Kg8 {[%clk 0:00:02]} 32. Qe6+ {[%clk 0:00:25]}  Kh7 {[%clk 0:00:03]} 33. Ra3 {[%clk 0:00:23]}  Bf5 {[%clk 0:00:02]} 34. Rh3+ {[%clk 0:00:22]}  Bxh3 {[%clk 0:00:02]} 35. Qxh3+ {[%clk 0:00:23]}  Kg8 {[%clk 0:00:03]} 36. Qe6+ {[%clk 0:00:23]}  Kh7 {[%clk 0:00:04]} 37. d7 {[%clk 0:00:22]}  e4 {[%clk 0:00:04]} 38. d8=Q {[%clk 0:00:15]}  Rxd8 {[%clk 0:00:04]} 39. Bxd8 {[%clk 0:00:14]}  Rxd8 {[%clk 0:00:04]} 40. Qxe4 {[%clk 0:00:13]}  Rf8 {[%clk 0:00:02]} 41. Kg2 {[%clk 0:00:13]}  Kg8 {[%clk 0:00:01]} 42. Qe6+ {[%clk 0:00:13]}  Kh7 {[%clk 0:00:01]} 43. Qh3+ {[%clk 0:00:13]}  Kg8 {[%clk 0:00:02]} 44. Qc8 {[%clk 0:00:13]}  Be5 {[%clk 0:00:02]} 45. Qxc5 {[%clk 0:00:12]} 1-0


[Site "https://www.chess.com"]

[Event "Titled Tuesday Blitz February 14 Late 2023"]
[White "Cruz, Jonathan"]
[Black "Sztokbant, Bernardo Vainzoff"]
[WhiteFideId "3802124"]
[BlackFideId "2115956"]
[WhiteElo "2328"]
[BlackElo "2213"]
[Result "0-1"]
[Round "10"]
[TimeControl "180+2"]
[Date "2023.02.14"]
[WhiteClock "0:00:01"]
[BlackClock "0:00:21"]

1. e4 {[%clk 0:02:53]}  c5 {[%clk 0:02:59]} 2. f4 {[%clk 0:02:43]}  Nc6 {[%clk 0:02:58]} 3. Nf3 {[%clk 0:02:41]}  g6 {[%clk 0:02:57]} 4. Bc4 {[%clk 0:02:32]}  Bg7 {[%clk 0:02:57]} 5. O-O {[%clk 0:02:31]}  e6 {[%clk 0:02:56]} 6. e5 {[%clk 0:02:20]}  d6 {[%clk 0:02:54]} 7. exd6 {[%clk 0:02:19]}  Qxd6 {[%clk 0:02:51]} 8. Nc3 {[%clk 0:02:13]}  Nf6 {[%clk 0:02:45]} 9. Kh1 {[%clk 0:02:08]}  Qxf4 {[%clk 0:02:39]} 10. d4 {[%clk 0:01:55]}  Qg4 {[%clk 0:02:27]} 11. h3 {[%clk 0:00:51]}  Qg3 {[%clk 0:02:26]} 12. d5 {[%clk 0:00:39]}  exd5 {[%clk 0:02:27]} 13. Nxd5 {[%clk 0:00:38]}  Nxd5 {[%clk 0:02:24]} 14. Bxd5 {[%clk 0:00:35]}  O-O {[%clk 0:02:21]} 15. c3 {[%clk 0:00:14]}  Be6 {[%clk 0:02:00]} 16. Bxe6 {[%clk 0:00:13]}  fxe6 {[%clk 0:02:01]} 17. Qe2 {[%clk 0:00:13]}  Rae8 {[%clk 0:01:57]} 18. Bg5 {[%clk 0:00:13]}  Ne5 {[%clk 0:01:42]} 19. Bh4 {[%clk 0:00:09]}  Qf4 {[%clk 0:01:38]} 20. Bg5 {[%clk 0:00:07]}  Qc4 {[%clk 0:01:25]} 21. Qe3 {[%clk 0:00:07]}  Nxf3 {[%clk 0:01:05]} 22. Rxf3 {[%clk 0:00:08]}  Rxf3 {[%clk 0:01:03]} 23. Qxf3 {[%clk 0:00:09]}  Rf8 {[%clk 0:00:54]} 24. Qe3 {[%clk 0:00:09]}  Qd5 {[%clk 0:00:43]} 25. Re1 {[%clk 0:00:05]}  Kh8 {[%clk 0:00:38]} 26. Qxe6 {[%clk 0:00:02]}  Qxg5 {[%clk 0:00:30]} 27. Qe4 {[%clk 0:00:02]}  h5 {[%clk 0:00:26]} 28. Qxb7 {[%clk 0:00:01]}  Qg3 {[%clk 0:00:25]} 29. Qe4 {[%clk 0:00:01]}  Rf2 {[%clk 0:00:21]} 0-1


[Site "https://www.chess.com"]

[Event "Titled Tuesday Blitz February 14 Late 2023"]
[White "Janaszak, Dawid"]
[Black "Drnovsek, Gal"]
[WhiteFideId "1119206"]
[BlackFideId "14607077"]
[WhiteElo "2316"]
[BlackElo "2397"]
[Result "0-1"]
[Round "10"]
[TimeControl "180+2"]
[Date "2023.02.14"]
[WhiteClock "0:00:03"]
[BlackClock "0:00:26"]

1. e4 {[%clk 0:03:00]}  e5 {[%clk 0:02:59]} 2. Nf3 {[%clk 0:02:56]}  Nc6 {[%clk 0:03:00]} 3. d4 {[%clk 0:02:54]}  exd4 {[%clk 0:03:01]} 4. Nxd4 {[%clk 0:02:55]}  Bb4+ {[%clk 0:03:01]} 5. Bd2 {[%clk 0:02:49]}  Bc5 {[%clk 0:02:59]} 6. Nb3 {[%clk 0:02:46]}  Bb6 {[%clk 0:02:59]} 7. Nc3 {[%clk 0:02:46]}  d6 {[%clk 0:02:55]} 8. Nd5 {[%clk 0:02:42]}  Nf6 {[%clk 0:02:53]} 9. Qf3 {[%clk 0:02:07]}  Nxd5 {[%clk 0:02:50]} 10. exd5 {[%clk 0:02:06]}  Ne5 {[%clk 0:02:50]} 11. Qg3 {[%clk 0:02:06]}  O-O {[%clk 0:02:51]} 12. O-O-O {[%clk 0:01:58]}  a5 {[%clk 0:02:46]} 13. a4 {[%clk 0:01:53]}  Bd7 {[%clk 0:02:42]} 14. f4 {[%clk 0:01:53]}  Ng4 {[%clk 0:02:33]} 15. Bc3 {[%clk 0:01:41]}  f6 {[%clk 0:02:24]} 16. Bd4 {[%clk 0:01:29]}  Nh6 {[%clk 0:02:14]} 17. Bxb6 {[%clk 0:01:24]}  cxb6 {[%clk 0:02:15]} 18. Nd4 {[%clk 0:01:24]}  Rc8 {[%clk 0:02:12]} 19. Bd3 {[%clk 0:01:22]}  Qc7 {[%clk 0:02:06]} 20. Rde1 {[%clk 0:01:16]}  Rf7 {[%clk 0:02:03]} 21. Re2 {[%clk 0:00:57]}  Bxa4 {[%clk 0:02:01]} 22. Rhe1 {[%clk 0:00:57]}  Qc5 {[%clk 0:01:52]} 23. Ne6 {[%clk 0:00:26]}  Qxd5 {[%clk 0:01:50]} 24. Kb1 {[%clk 0:00:26]}  Nf5 {[%clk 0:01:40]} 25. Qh3 {[%clk 0:00:25]}  g6 {[%clk 0:01:33]} 26. g4 {[%clk 0:00:25]}  Nd4 {[%clk 0:01:20]} 27. Nxd4 {[%clk 0:00:25]}  Qxd4 {[%clk 0:01:21]} 28. Re4 {[%clk 0:00:24]}  Qf2 {[%clk 0:01:15]} 29. Rf1 {[%clk 0:00:22]}  Bxc2+ {[%clk 0:01:14]} 30. Ka1 {[%clk 0:00:16]}  Qd2 {[%clk 0:00:59]} 31. g5 {[%clk 0:00:09]}  f5 {[%clk 0:00:56]} 32. Rd4 {[%clk 0:00:08]}  Bb3 {[%clk 0:00:40]} 33. Rb1 {[%clk 0:00:05]}  Qf2 {[%clk 0:00:26]} 34. Qf1 {[%clk 0:00:03]}  Qxd4 {[%clk 0:00:26]} 0-1


[Site "https://www.chess.com"]

[Event "Titled Tuesday Blitz February 14 Late 2023"]
[White "Rodrigues, Tiago Pereira"]
[Black "Nunez V, Gustavo Eduardo"]
[WhiteFideId "2101203"]
[BlackFideId "4403690"]
[WhiteElo "2155"]
[BlackElo "2212"]
[Result "1-0"]
[Round "10"]
[TimeControl "180+2"]
[Date "2023.02.14"]
[WhiteClock "0:00:35"]
[BlackClock "0:01:16"]

1. d4 {[%clk 0:02:59]}  Nf6 {[%clk 0:02:59]} 2. Bf4 {[%clk 0:02:58]}  d5 {[%clk 0:02:59]} 3. e3 {[%clk 0:02:58]}  e6 {[%clk 0:02:57]} 4. c4 {[%clk 0:02:58]}  c5 {[%clk 0:02:55]} 5. Nf3 {[%clk 0:02:57]}  Nc6 {[%clk 0:02:54]} 6. dxc5 {[%clk 0:02:53]}  Bxc5 {[%clk 0:02:54]} 7. a3 {[%clk 0:02:52]}  Qa5+ {[%clk 0:02:50]} 8. Nbd2 {[%clk 0:02:52]}  dxc4 {[%clk 0:02:49]} 9. Bxc4 {[%clk 0:02:51]}  Qd8 {[%clk 0:02:43]} 10. b4 {[%clk 0:02:50]}  Bd6 {[%clk 0:02:44]} 11. O-O {[%clk 0:02:43]}  O-O {[%clk 0:02:42]} 12. Bg5 {[%clk 0:02:32]}  h6 {[%clk 0:02:41]} 13. Bh4 {[%clk 0:02:32]}  g5 {[%clk 0:02:40]} 14. Bg3 {[%clk 0:02:31]}  Bxg3 {[%clk 0:02:40]} 15. hxg3 {[%clk 0:02:32]}  Nd5 {[%clk 0:02:37]} 16. Ne4 {[%clk 0:02:25]}  Nb6 {[%clk 0:02:37]} 17. Bd3 {[%clk 0:02:23]}  f5 {[%clk 0:02:35]} 18. Nc5 {[%clk 0:02:23]}  Qf6 {[%clk 0:02:31]} 19. Qb3 {[%clk 0:02:14]}  Kg7 {[%clk 0:02:23]} 20. Rac1 {[%clk 0:02:09]}  Ne7 {[%clk 0:02:21]} 21. e4 {[%clk 0:02:04]}  fxe4 {[%clk 0:02:18]} 22. Nxe4 {[%clk 0:01:58]}  Qf7 {[%clk 0:02:16]} 23. Ne5 {[%clk 0:01:53]}  Qe8 {[%clk 0:02:11]} 24. Qb2 {[%clk 0:01:47]}  Ned5 {[%clk 0:02:01]} 25. Nd7+ {[%clk 0:01:41]}  e5 {[%clk 0:01:52]} 26. Nxf8 {[%clk 0:01:40]}  Kxf8 {[%clk 0:01:52]} 27. Nd6 {[%clk 0:01:29]}  Qe6 {[%clk 0:01:50]} 28. Nxc8 {[%clk 0:01:25]}  Rxc8 {[%clk 0:01:51]} 29. Rxc8+ {[%clk 0:01:24]}  Nxc8 {[%clk 0:01:52]} 30. Re1 {[%clk 0:01:23]}  Nce7 {[%clk 0:01:43]} 31. Qxe5 {[%clk 0:01:23]}  Qxe5 {[%clk 0:01:38]} 32. Rxe5 {[%clk 0:01:23]}  a6 {[%clk 0:01:35]} 33. Be4 {[%clk 0:01:16]}  Nc3 {[%clk 0:01:23]} 34. Bxb7 {[%clk 0:01:15]}  Nb5 {[%clk 0:01:23]} 35. a4 {[%clk 0:01:12]}  Nc7 {[%clk 0:01:23]} 36. Ra5 {[%clk 0:00:56]}  Ke8 {[%clk 0:01:18]} 37. Bxa6 {[%clk 0:00:56]}  Kd7 {[%clk 0:01:18]} 38. Bb7 {[%clk 0:00:54]}  Kd6 {[%clk 0:01:17]} 39. Kf1 {[%clk 0:00:52]}  Ng6 {[%clk 0:01:17]} 40. Rc5 {[%clk 0:00:49]}  Ne6 {[%clk 0:01:14]} 41. Rc6+ {[%clk 0:00:48]}  Kd7 {[%clk 0:01:14]} 42. Rc1 {[%clk 0:00:46]}  Kd6 {[%clk 0:01:11]} 43. a5 {[%clk 0:00:45]}  Nc7 {[%clk 0:01:04]} 44. a6 {[%clk 0:00:44]}  Nb5 {[%clk 0:01:04]} 45. Rc6+ {[%clk 0:00:42]}  Kd7 {[%clk 0:01:04]} 46. Rxg6 {[%clk 0:00:43]}  Kc7 {[%clk 0:01:05]} 47. Rxh6 {[%clk 0:00:42]}  g4 {[%clk 0:01:05]} 48. Ke1 {[%clk 0:00:41]}  Kb8 {[%clk 0:01:05]} 49. Rg6 {[%clk 0:00:38]}  Ka7 {[%clk 0:01:04]} 50. Rxg4 {[%clk 0:00:38]}  Nd6 {[%clk 0:01:04]} 51. Rd4 {[%clk 0:00:37]}  Nf5 {[%clk 0:01:04]} 52. Rd7 {[%clk 0:00:35]}  Nh6 {[%clk 0:01:03]} 53. Be4+ {[%clk 0:00:33]}  Kxa6 {[%clk 0:01:02]} 54. Rd6+ {[%clk 0:00:33]}  Kb5 {[%clk 0:01:03]} 55. Rxh6 {[%clk 0:00:33]}  Kxb4 {[%clk 0:01:04]} 56. Rd6 {[%clk 0:00:33]}  Kc3 {[%clk 0:01:04]} 57. Ke2 {[%clk 0:00:33]}  Kc4 {[%clk 0:01:05]} 58. Rd3 {[%clk 0:00:33]}  Kc5 {[%clk 0:01:06]} 59. Bf3 {[%clk 0:00:32]}  Kc4 {[%clk 0:01:07]} 60. Ke3 {[%clk 0:00:32]}  Kc5 {[%clk 0:01:08]} 61. Ke4 {[%clk 0:00:33]}  Kc4 {[%clk 0:01:09]} 62. g4 {[%clk 0:00:34]}  Kc5 {[%clk 0:01:10]} 63. Bd1 {[%clk 0:00:33]}  Kc4 {[%clk 0:01:11]} 64. f4 {[%clk 0:00:33]}  Kc5 {[%clk 0:01:12]} 65. Rd4 {[%clk 0:00:32]}  Kc6 {[%clk 0:01:11]} 66. Rd5 {[%clk 0:00:33]}  Kc7 {[%clk 0:01:12]} 67. Ke5 {[%clk 0:00:33]}  Kc6 {[%clk 0:01:13]} 68. Ke6 {[%clk 0:00:33]}  Kc7 {[%clk 0:01:13]} 69. Rd6 {[%clk 0:00:33]}  Kc8 {[%clk 0:01:13]} 70. Rd7 {[%clk 0:00:34]}  Kb8 {[%clk 0:01:13]} 71. Kd6 {[%clk 0:00:35]}  Kc8 {[%clk 0:01:14]} 72. Kc6 {[%clk 0:00:36]}  Kb8 {[%clk 0:01:15]} 73. Kb6 {[%clk 0:00:36]}  Kc8 {[%clk 0:01:16]} 74. Rd6 {[%clk 0:00:36]}  Kb8 {[%clk 0:01:16]} 75. Rd8# {[%clk 0:00:35]} 1-0


[Site "https://www.chess.com"]

[Event "Titled Tuesday Blitz February 14 Late 2023"]
[White "Papp, Levente"]
[Black "Pasti, Aron"]
[WhiteFideId "751243"]
[BlackFideId "785857"]
[WhiteElo "2353"]
[BlackElo "2361"]
[Result "0-1"]
[Round "10"]
[TimeControl "180+2"]
[Date "2023.02.14"]
[WhiteClock "0:00:01"]
[BlackClock "0:00:26"]

1. e4 {[%clk 0:03:00]}  c5 {[%clk 0:03:00]} 2. c4 {[%clk 0:03:00]}  Nc6 {[%clk 0:02:58]} 3. Nc3 {[%clk 0:02:59]}  g6 {[%clk 0:02:56]} 4. g3 {[%clk 0:02:59]}  Bg7 {[%clk 0:02:57]} 5. Nge2 {[%clk 0:03:00]}  e6 {[%clk 0:02:56]} 6. Bg2 {[%clk 0:03:00]}  Nge7 {[%clk 0:02:57]} 7. O-O {[%clk 0:03:00]}  O-O {[%clk 0:02:57]} 8. Rb1 {[%clk 0:03:01]}  Rb8 {[%clk 0:02:57]} 9. a3 {[%clk 0:03:01]}  a6 {[%clk 0:02:53]} 10. b4 {[%clk 0:03:01]}  cxb4 {[%clk 0:02:52]} 11. axb4 {[%clk 0:03:02]}  b5 {[%clk 0:02:51]} 12. cxb5 {[%clk 0:03:01]}  axb5 {[%clk 0:02:52]} 13. d4 {[%clk 0:02:56]}  d5 {[%clk 0:02:52]} 14. Bf4 {[%clk 0:02:44]}  Rb7 {[%clk 0:02:42]} 15. e5 {[%clk 0:02:11]}  f6 {[%clk 0:02:41]} 16. exf6 {[%clk 0:02:10]}  Bxf6 {[%clk 0:02:40]} 17. Qd3 {[%clk 0:02:03]}  Rb6 {[%clk 0:02:25]} 18. Bh6 {[%clk 0:01:25]}  Re8 {[%clk 0:02:10]} 19. Be3 {[%clk 0:01:23]}  Nf5 {[%clk 0:02:06]} 20. Qd2 {[%clk 0:01:19]}  Nd6 {[%clk 0:02:05]} 21. Nf4 {[%clk 0:01:11]}  Nc4 {[%clk 0:02:02]} 22. Qd1 {[%clk 0:01:10]}  Ra6 {[%clk 0:01:56]} 23. Nxb5 {[%clk 0:01:07]}  Rb6 {[%clk 0:01:52]} 24. Nc3 {[%clk 0:01:05]}  Rxb4 {[%clk 0:01:49]} 25. Ncxd5 {[%clk 0:00:59]}  exd5 {[%clk 0:01:14]} 26. Bxd5+ {[%clk 0:01:00]}  Kh8 {[%clk 0:01:15]} 27. Rxb4 {[%clk 0:01:00]}  Nxe3 {[%clk 0:01:14]} 28. Rb3 {[%clk 0:00:30]}  Nxd1 {[%clk 0:01:10]} 29. Bxc6 {[%clk 0:00:30]}  Nxf2 {[%clk 0:01:04]} 30. Bxe8 {[%clk 0:00:19]}  Bxd4 {[%clk 0:00:59]} 31. Bc6 {[%clk 0:00:17]}  Ne4+ {[%clk 0:00:56]} 32. Kh1 {[%clk 0:00:13]}  Nd2 {[%clk 0:00:56]} 33. Rd3 {[%clk 0:00:07]}  Nxf1 {[%clk 0:00:56]} 34. Ne2 {[%clk 0:00:02]}  Ba6 {[%clk 0:00:30]} 35. Rxd4 {[%clk 0:00:02]}  Qb6 {[%clk 0:00:31]} 36. Bf3 {[%clk 0:00:01]}  Bxe2 {[%clk 0:00:30]} 37. Rf4 {[%clk 0:00:01]}  Bxf3+ {[%clk 0:00:27]} 38. Rxf3 {[%clk 0:00:01]}  Qc6 {[%clk 0:00:26]} 0-1


[Site "https://www.chess.com"]

[Event "Titled Tuesday Blitz February 14 Late 2023"]
[White "Bilan, Danila"]
[Black "Buchenau, Frank"]
[WhiteFideId "24161918"]
[BlackFideId "4604350"]
[WhiteElo "2303"]
[BlackElo "2222"]
[Result "0-1"]
[Round "10"]
[TimeControl "180+2"]
[Date "2023.02.14"]
[WhiteClock "0:01:23"]
[BlackClock "0:01:12"]

1. d4 {[%clk 0:03:00]}  e6 {[%clk 0:02:56]} 2. Nf3 {[%clk 0:03:00]}  Nf6 {[%clk 0:02:56]} 3. g3 {[%clk 0:03:00]}  b6 {[%clk 0:02:57]} 4. Bg2 {[%clk 0:03:01]}  Bb7 {[%clk 0:02:58]} 5. O-O {[%clk 0:03:01]}  Be7 {[%clk 0:02:57]} 6. c4 {[%clk 0:03:02]}  O-O {[%clk 0:02:57]} 7. d5 {[%clk 0:03:02]}  exd5 {[%clk 0:02:57]} 8. Nh4 {[%clk 0:03:03]}  c6 {[%clk 0:02:57]} 9. cxd5 {[%clk 0:03:02]}  Nxd5 {[%clk 0:02:58]} 10. Nf5 {[%clk 0:03:03]}  Bf6 {[%clk 0:02:59]} 11. e4 {[%clk 0:03:03]}  Nc7 {[%clk 0:02:59]} 12. Nc3 {[%clk 0:03:03]}  d5 {[%clk 0:02:51]} 13. Bf4 {[%clk 0:02:54]}  Bc8 {[%clk 0:02:37]} 14. Nd6 {[%clk 0:02:39]}  Ne6 {[%clk 0:02:25]} 15. Nxc8 {[%clk 0:02:33]}  Nxf4 {[%clk 0:02:22]} 16. gxf4 {[%clk 0:02:30]}  Bxc3 {[%clk 0:02:06]} 17. bxc3 {[%clk 0:02:29]}  Qxc8 {[%clk 0:02:04]} 18. exd5 {[%clk 0:02:29]}  Na6 {[%clk 0:01:36]} 19. dxc6 {[%clk 0:02:24]}  Qf5 {[%clk 0:01:25]} 20. c7 {[%clk 0:01:49]}  Rae8 {[%clk 0:01:14]} 21. Bc6 {[%clk 0:01:23]}  Qg6+ {[%clk 0:01:12]} 0-1


[Site "https://www.chess.com"]